Cogmind - Beta 11 @@@ ROGUE MODE // 2022.03.19 @ 20:23:42 Player: slowdive Result: Destroyed by G-34 Mercenary with Small Laser Performance ------------- Evolutions (1) 500 Regions Visited (2) 400 Robots Destroyed (22) 110 Value Destroyed (448) 448 Prototype IDs (1) 20 Alien Tech Used (0) 0 Bonus (0) 0 TOTAL SCORE: 1478 Bonus ------- None Cogmind --------- Core Integrity 0/400 Matter 247/300 Energy 79/280 System Corruption 0% Temperature Cool (6) Movement Core (150) Ox2 Location -9/Materials Parts ------- > --- POWER (1) -------- Cooled Ion Engine > --- PROPULSION (3) --- (None) > --- UTILITY (3) ------ Medium Storage Unit Weight Redist. System Structural Scanner > --- WEAPON (2) ------- Field Laser Heavy Mace > --- INVENTORY (10) --- Light Ion Engine Cooled Ion Engine Heat Sink Small Storage Unit Terrain Scanner Field Laser Heavy Assault Rifle Peak State ------------ > --- POWER ------------ Light Ion Engine > --- PROPULSION ------- Flight Unit Flight Unit > --- UTILITY ---------- Medium Storage Unit Weight Redist. System Structural Scanner > --- WEAPON ----------- Field Laser Field Laser > --- INVENTORY -------- Light Ion Engine Cooled Ion Engine Cooled Ion Engine Heat Sink Small Storage Unit Terrain Scanner Heavy Assault Rifle Heavy Mace [Rating: 14] Favorites ----------- Power Light Ion Engine Engine Light Ion Engine Propulsion Flight Unit Treads Light Treads Leg Aluminum Leg Flight Unit Flight Unit Utility Small Storage Unit Device Weight Redist. System Storage Small Storage Unit Weapon Assault Rifle Energy Gun Medium Laser Ballistic Gun Assault Rifle Special Weapon Mining Laser Impact Weapon Heavy Mace Build | -11 -10 -9 ------- Run | Scr Mat Mat Slots Evolved 2 | . . 2 Power . | . . . Propulsion 1 | . . 1 Utility 1 | . . 1 Weapon . | . . . Parts Attached 32 | . 3 29 Power 5 | . 1 4 Engine 5 | . 1 4 Core . | . . . Reactor . | . . . Propulsion 10 | . 1 9 Treads 2 | . . 2 Leg 1 | . 1 . Wheel . | . . . Hover . | . . . Flight 7 | . . 7 Utility 6 | . 1 5 Device 3 | . 1 2 Storage 3 | . . 3 Processor . | . . . Hackware . | . . . Protection . | . . . Artifact . | . . . Weapon 11 | . . 11 Energy Gun 7 | . . 7 Energy Cannon . | . . . Ballistic Gun 2 | . . 2 Ballistic Cannon . | . . . Launcher . | . . . Special Weapon 1 | . . 1 Impact Weapon 1 | . . 1 Slashing Weapon . | . . . Piercing Weapon . | . . . Special Melee Weapon . | . . . Unidentified Prototypes 1 | . . 1 Parts Lost 7 | . . 7 Power 1 | . . 1 Propulsion 6 | . . 6 Utility . | . . . Weapon . | . . . Highest Loss Streak 3 | . . 3 To Critical Strikes . | . . . Average Slot Usage (%) 80 | . 85 78 Engine 11 | . 14 11 Leg 7 | . 28 . Flight 22 | . . 29 Device 6 | . . 9 Storage 11 | . 14 11 Energy Gun 10 | . 14 9 Ballistic Gun 8 | . 14 6 Naked Turns . | . . . Heaviest Build 23 | 12 13 23 Greatest Support 20 | 20 20 18 Greatest Overweight (x) 2 | . . 2 Average Overweight (x) . | . . . Largest Inventory Capacity 10 | 8 8 10 Average Capacity 8 | 8 8 9 Most Carried 10 | 6 8 10 Average Carried 7 | 6 6 8 Final Capacity 10 | 8 8 10 Final Carried 8 | 6 8 8 Class Distribution -------------------- 53% | Mutant 46% | Scavenger-Mutant Dominant Class ---------------- Mutant | -10/Materials Scavenger-Mutant | -9/Materials Resources | -11 -10 -9 ----------- Run | Scr Mat Mat Matter Collected 541 | 200 55 286 Remotely . | . . . Salvage Created 630 | . 118 512 Parts 50 | . 17 33 Haulers Intercepted 2 | . . 2 Recyclers Shooed 1 | . 1 . Parts Field Recycled . | . . . Retrieved Matter . | . . . Parts Self-Destructed . | . . . Prevented . | . . . Kills | -11 -10 -9 ------- Run | Scr Mat Mat Combat Hostiles Destroyed 19 | . 7 12 Melee 2 | . . 2 Guns 17 | . 7 10 Classes Destroyed 5 | . 2 3 Builder 1 | . . 1 Hauler 2 | . . 2 Swarmer 10 | . 6 4 Grunt 6 | . 1 5 Sentry 3 | . . 3 Best Kill Streak 6 | . 6 5 Combat Bots Only 6 | . 6 5 Max Kills in Single Turn 2 | . 2 2 Gunslinging 1 | . 1 1 Exploded . | . . . Melee 1 | . . 1 Uniques/NPCs Destroyed . | . . . Combat | -11 -10 -9 -------- Run | Scr Mat Mat Damage Taken 1366 | . 247 1119 Core 458 | . 57 401 Absorbed by Shields . | . . . Regen/Repaired (Parts) 62 | . . 62 Core Remaining (%) 88 | 100 77 . Volleys Fired 63 | . 15 48 Largest 2 | . 2 2 Hottest 126 | . 70 126 Shots Fired 102 | . 30 72 Gun 100 | . 30 70 Cannon . | . . . Launcher . | . . . Special 2 | . . 2 Kinetic 37 | . 15 22 Thermal 65 | . 15 50 Explosive . | . . . Electromagnetic . | . . . Robot Hit Streak 13 | . 5 13 Robot Miss Streak 3 | . 3 3 Penetration Max . | . . . Secondary Targets 4 | . 1 3 Max Gunslinging Chain 1 | . 1 1 Shots Hit Robots 71 | . 17 54 Core Hits 30 | . 8 22 Critical Kills 1 | . . 1 Critical Parts Destroyed . | . . . Critical Strikes 2 | . . 2 Burn 1 | . . 1 Smash 1 | . . 1 Melee Attacks 11 | . . 11 Impact 11 | . . 11 Slashing . | . . . Piercing . | . . . Sneak Attacks . | . . . Combat Hostiles . | . . . Follow-up Attacks . | . . . Damage Inflicted 1206 | . 239 967 Guns 894 | . 239 655 Cannons . | . . . Explosions . | . . . Melee 287 | . . 287 Ramming 1 | . . 1 Kinetic 332 | . 138 194 Thermal 586 | . 101 485 Explosive . | . . . Electromagnetic . | . . . Impact 287 | . . 287 Slashing . | . . . Piercing . | . . . Highest Corruption . | . . . Average Corruption . | . . . Corruption Purged . | . . . Corruption Blocked . | . . . Overload Shots . | . . . Overflow Damage . | . . . Projectiles . | . . . Explosions . | . . . Melee . | . . . Knockbacks . | . . . Impact . | . . . Kinetic . | . . . Secondary . | . . . Self-Inflicted Damage . | . . . Shots . | . . . Rammed 1 | . . 1 Targets Rammed 1 | . . 1 Kicked . | . . . Crushed . | . . . Highest Temperature 230 | . 60 230 Average Temperature 57 | . 23 68 Received Heat Transfer 381 | . 30 351 Siege Activations . | . . . Robots Corrupted . | . . . Combat Hostiles . | . . . Parts Fried . | . . . Impact Corruptions . | . . . Robots Melted . | . . . Combat Hostiles . | . . . Parts Melted 1 | . . 1 Heat Transferred 1567 | . 296 1271 Parts Sabotaged . | . . . Parts Stolen . | . . . Parts Stripped . | . . . Power Chain Reactions . | . . . Missiles Intercepted . | . . . Alert | -11 -10 -9 ------- Run | Scr Mat Mat Peak Influence 323 | . 218 323 Initial 91 | . . 91 Average 162 | . 69 198 Maximum Alert Level 1 | . 1 1 Low Security (%) 65 | 100 94 54 Level 1 34 | . 5 45 Level 2 . | . . . Level 3 . | . . . Level 4 . | . . . Level 5 . | . . . High Security . | . . . Max Security . | . . . Squads Dispatched 5 | . 1 4 Investigation 2 | . . 2 Extermination . | . . . Reinforcement 3 | . 1 2 Assault . | . . . Garrison . | . . . Intercept . | . . . Searches Triggered . | . . . Construction Impeded . | . . . Haulers Reinforced . | . . . Active Scanning Responses . | . . . Cargo Convoy Interrupts . | . . . Stealth | -11 -10 -9 --------- Run | Scr Mat Mat Distress Signals 2 | . . 2 Communications Jammed . | . . . Distress Signals . | . . . Times Spotted 30 | . 9 21 Peak Tracking Total 6 | . 6 5 Tactical Retreats 2 | . 1 1 Traps | -11 -10 -9 ------- Run | Scr Mat Mat Traps Triggered 1 | . . 1 Indirectly . | . . . Trap Hack Attempts . | . . . Triggered . | . . . Disarmed . | . . . Reprogrammed . | . . . Reused . | . . . Traps Extracted . | . . . Installed . | . . . Triggered . | . . . Machines | -11 -10 -9 ---------- Run | Scr Mat Mat Machines Disabled . | . . . Max in Single Turn . | . . . Machines Sabotaged . | . . . Garrisons Compromised . | . . . Overloaded Fab Kills . | . . . Hacking | -11 -10 -9 --------- Run | Scr Mat Mat Machines Accessed 1 | . . 1 Terminals . | . . . Fabricators . | . . . Repair Stations 1 | . . 1 Recycling Units . | . . . Scanalyzers . | . . . Garrison Access . | . . . Total Hacks 3 | . . 3 Successful 2 | . . 2 Failed 1 | . . 1 Catastrophic . | . . . Database Lockouts . | . . . Manual . | . . . Terminals . | . . . Fabricators . | . . . Repair Stations 3 | . . 3 Recycling Units . | . . . Scanalyzers . | . . . Garrison Access . | . . . Terminal Hacks . | . . . Fabricator Hacks . | . . . Repair Station Hacks 2 | . . 2 Scan Component 1 | . . 1 Repair 1 | . . 1 Recycling Unit Hacks . | . . . Scanalyzer . | . . . Garrison Access Hacks . | . . . Unauthorized Hacks . | . . . Terminals . | . . . Fabricators . | . . . Repair Stations . | . . . Recycling Units . | . . . Scanalyzers . | . . . Garrison Access . | . . . Data Cores Recovered . | . . . Used . | . . . Hacking Detections 1 | . . 1 Full Trace Events 1 | . . 1 Feedback Events . | . . . Feedback Blocked . | . . . Robot Schematics Acquired . | . . . Robots Built . | . . . Authchips . | . . . Time . | . . . Total Robot Build Rating . | . . . Part Schematics Acquired . | . . . Parts Built . | . . . Authchips . | . . . Time . | . . . Total Part Build Rating . | . . . Parts Repaired 1 | . . 1 Time 32 | . . 32 Parts Recycled . | . . . Recycled Matter . | . . . Retrieved Matter . | . . . Retrieved Components . | . . . Parts Scanalyzed . | . . . Part Schematics Acquired . | . . . Parts Damaged . | . . . Bothacking | -11 -10 -9 ------------ Run | Scr Mat Mat Used RIF Installer . | . . . Robots Hacked . | . . . Non-combat . | . . . Combat . | . . . Robot Hacks Applied . | . . . Relay Couplers Released . | . . . Fabnet Peak Effective % . | . . . Robots Rewired . | . . . Allies Hacked . | . . . Hacks Repelled . | . . . Allies | -11 -10 -9 -------- Run | Scr Mat Mat Total Allies . | . . . Largest Group . | . . . Highest-Rated Group . | . . . Highest-Rated Ally . | . . . Total Orders . | . . . Ally Attacks . | . . . Total Damage . | . . . Kills . | . . . Allies Corrupted . | . . . Allies Melted . | . . . Intel | -11 -10 -9 ------- Run | Scr Mat Mat Robot Analysis Total . | . . . Derelict Logs Recovered . | . . . Drone Launches . | . . . Drone Recoveries . | . . . Exploration | -11 -10 -9 ------------- Run | Scr Mat Mat Turns Passed 824 | 10 214 600 Spaces Moved 653 | 9 133 511 Core . | . . . Treads . | . . . Legs 142 | 9 133 . Wheels . | . . . Hover . | . . . Flight 511 | . . 511 Fastest Speed 34 | 120 120 34 Average Speed 56 | 120 120 39 Slowest Speed 220 | 120 120 220 Overloaded Moves . | . . . Propulsion Burnouts . | . . . Robots Hopped 2 | . . 2 Cave-ins Triggered . | . . . Exploration Rate (%) 20 | 2 27 31 Regions Visited 2 Branch Regions . Pre-discovered Areas . | . . . Known Exits Taken . | . . . Unknown Exits Taken 2 | 1 1 . Scrap Searched . | . . . Spaces Dug . | . . . Terrain Destroyed 1 | . . 1 Melee . | . . . Projectile 1 | . . 1 AOE . | . . . Terrain Rammed . | . . . Walls Destroyed . | . . . Machines Disabled . | . . . Actions | -11 -10 -9 --------- Run | Scr Mat Mat Total 988 | 8 159 821 Wait 188 | . . 188 Move 647 | 8 132 507 Hop 2 | . . 2 Pick Up 16 | . 5 11 Fast Attach 11 | . 1 10 Attach 15 | . . 15 Detach 10 | . . 10 Swap 6 | . 2 4 Drop 18 | . 4 14 Fire 63 | . 15 48 Melee 11 | . . 11 Ram 1 | . . 1 Kick . | . . . Crush . | . . . Escape Stasis . | . . . Rewire . | . . . Trap . | . . . Miscellaneous . | . . . Route ------- -11/Scrapyard -10/Materials -9/Materials (discovered 1 exit: [*Mat]) History --------- Turn | Location | Event 1 | -11/Scrapyard | Discovered new exit (range 3) 11 | -11/Scrapyard | Entered Materials 202 | -10/Materials | Discovered new exit (range 3) 225 | -10/Materials | Entered another Materials area 225 | -9/Materials | Evolved 2 slots: Propulsion x1, Utility x1 311 | -9/Materials | Build established: Mutant 557 | -9/Materials | Lost 3 parts (3n) 599 | -9/Materials | Repaired Beam Rifle 688 | -9/Materials | Core integrity fell below 50% 717 | -9/Materials | Discovered new exit (range 3) 745 | -9/Materials | Build established: Scavenger-Mutant 789 | -9/Materials | Core integrity fell below 20% 825 | -9/Materials | Destroyed by G-34 Mercenary with Small Laser Last Messages --------------- 00752_ K-01 Serf collects debris. 00754_ Flight Unit destroyed. 00758_ K-01 Serf collects debris. 00761_ R-06 Scavenger collects Lgt. Armor Plating. 00763_ Dropped Field Laser. 00765_ G-34 Mercenary destroyed. 00766_ K-01 Serf collects debris. 00769_ Acquired 59 matter. 00769_ K-01 Serf collects debris. 00774_ Flight Unit destroyed. 00780_ Y-45 Defender destroyed. 00780_ K-01 Serf collects debris. 00785_ U-05 Engineer lays Concrete. 00786_ K-01 Serf collects debris. 00786_ U-05 Engineer lays Concrete. 00789_ K-01 Serf cleans the Material Processor. 00820_ Lgt. Ion Engine destroyed. 00821_ G-34 Mercenary suffers critical hit (Smash). 00821_ G-34 Mercenary destroyed. 00823_ Flight Unit destroyed. Map ----- +----------------------------------------------------+ | ?????????????????????????????????????????????????? | | ?????????????????????????????????????????????????? | | ?????????????????????????????????????????????????? | | ????????????????????????????? # ????????????????? | | ???????????????????????????? + ??????????????? | | ???????????????????????????? ####?????? ?????? | | ???????????????????????????? ????? ?????? | | ??????????????????########## ?????? ?????? | | ??????????????????########## ??????? ?????? | | ??????????????????## """ ## ?????? ? ?????? | | ??????????????????## """ ## ????? ?? ?????? | | ??????????????????## """ ## """??? "?" ?????? | | ??????????????????## ## """"" """"" #????? | | ??????????????????## [= ## """"" """"" #????? | | #################### =%* ## """"" """"" "????? | | #######################/### """ """ %T????? | | =%[ "????? | | < =! #????? | | #????? | | ##+#### ###+########## [ #????? | | # [ # ######+########"T"?# ###??? | | """ #[|//!!# """?????## #####???# #??? | | """ # [ /!!# "T" ????## ##??????# #??? | | """ ######## ??? ## ##??????# #??? | | ####### """"?? ##%""" ##??????# #??? | | ##????## """"?? # @""" ##??????# #??? | | ##+#####????## ""?""? ##g"""g"T" ##??????# #??? | | ## #####????## ????? ## """ ##??????# #??? | | ## ##???????#####??????## g ##??????# #??? | | ## ##???????#####??????#################### #### | | ## ##??????????????????###### # # | | ## ##???????????????????????# """"" + + | | ## ##??????????????????????# """"" # # | | ## #####????????????????????# """"" # # | | ##+#####????????????????????# ""T"" # # | | ##????????????????????# """"" # # | | """ #######???????????????############### # | | """ ##########??????????????????????????# # | | """ # #####???????? ################## # | | + #### | | """ # #??? | | """ # #########?? ?????####### #??? | | """ ## ##########?? ???????????# #??? | | ## ###?##?????? ???????????# #??? | | ###+#### # ? ??????? +??????????# #??? | | #### # ???????? #??????????# ###+####??? | | #### # ????????? #??????????# # ????? | | ### # ????????? #??????????# # #??? | | ### # ?????????# #??????????# # #??? | | ### +??????????# #????####### # #??? | +----------------------------------------------------+ Best States ------------- Heat Dissipation 38 Energy Generation 14 Energy Capacity 280 Matter Stores 300 Matter Capacity 300 Sight Range 16 Terrain Scan Density 10 Additional Mass Support 6 Evasion (%) 63 Recoil Reduction 1 Item Schematics ----------------- None Robot Schematics ------------------ None Fabricated ------------ Nothing Alien Tech Used ----------------- None Achievements -------------- None Challenges ------------ None Game ------ Seed SpreadSurveybotFlakker Manual? 0 Play Time 00:21:31 Cumulative 44.3 hours Start 2022.03.19 @ 19:47:52 End 2022.03.19 @ 20:23:42 Sessions 1 Manual Loads 0 Difficulty Rogue Special Mode None Game No. 57 Rogue 57 Adventurer 0 Explorer 0 Win Type - Total 0 Types 0/0/0/0/0/0/0/0/0 Lore% 20 Gallery% 26 Achievement% 21 Wizard Run 0 Options --------- ASCII 0 Keyboard 0 Movement Numpad Keybinds 0 Fullscreen 2 Font 18/SmallcapsGlow Map View 76x50 Tactical HUD 1 Map Filters NONE Filters NONE Steam 1 RUN: 2e406109-c44e-47a6-b808-66302cb8a425